bitfinex/quotes_BTCUSD_20250901
["timestamp","ask_amount","ask_price","bid_price","bid_amount"]
[1756733700577,0.182717,109460.0,109450.0,0.15808]
[1756733700782,0.182717,109460.0,109450.0,0.34610598]
[1756733700990,0.182717,109460.0,109450.0,0.34583184]
[1756733701618,0.18273184,109450.0,109440.0,0.25400599]
[1756733701822,0.18274853,109440.0,109430.0,0.11114583]
[1756733702028,0.18274853,109440.0,109430.0,0.54603705]
[1756733702203,0.18274853,109440.0,109430.0,0.54904705]
[1756733702619,0.18274853,109440.0,109430.0,0.20808182]
[1756733702846,0.18490853,109440.0,109430.0,0.36126182]
[1756733703049,0.18274853,109440.0,109430.0,0.54904705]
[1756733703256,0.34093184,109450.0,109430.0,0.54904705]
[1756733703257,0.18273184,109450.0,109440.0,0.18274853]
[1756733703499,0.182717,109460.0,109450.0,0.18273184]
[1756733703701,0.18274692,109470.0,109460.0,0.18271514]
[1756733703908,0.19188904,109480.0,109460.0,0.54060393]
[1756733704113,0.19188904,109480.0,109470.0,0.16044373]
[1756733704344,0.19188904,109480.0,109470.0,0.16345373]
[1756733704550,0.19188904,109480.0,109470.0,0.34816218]
[1756733704757,0.19188904,109480.0,109470.0,0.34587845]
[1756733704962,0.18275496,109480.0,109470.0,0.34587845]
[1756733705372,0.18275496,109480.0,109470.0,0.3459255]
[1756733705581,0.53207741,109490.0,109480.0,0.18268176]
[1756733705788,0.53418741,109490.0,109480.0,0.00228352]
[1756733705998,0.19418741,109490.0,109480.0,0.18496528]
[1756733706209,0.18505416,109490.0,109480.0,0.19015528]
[1756733706394,0.18294416,109490.0,109480.0,0.18787176]
[1756733706737,0.18505416,109490.0,109480.0,0.00211]
[1756733706953,0.18505416,109490.0,109480.0,0.00439352]
[1756733707387,0.18505416,109490.0,109470.0,0.04326748]
[1756733707388,0.18268176,109480.0,109470.0,0.20130748]
[1756733707560,0.18268176,109480.0,109470.0,0.47803192]
[1756733708562,0.53832662,109480.0,109470.0,4.705e-05]
[1756733708767,0.69636662,109480.0,109470.0,4.705e-05]
[1756733708991,1.03636662,109480.0,109470.0,4.705e-05]
[1756733709623,1.03636662,109480.0,109470.0,0.00304705]
[1756733709865,1.47886747,109480.0,109470.0,0.00104705]
[1756733710068,1.62225213,109480.0,109470.0,0.00104705]
[1756733710403,1.57656447,109480.0,109470.0,4.705e-05]
[1756733710574,1.41852447,109480.0,109470.0,4.705e-05]
[1756733710774,1.57652447,109480.0,109470.0,4.705e-05]
[1756733711572,1.06793961,109480.0,109470.0,4.705e-05]
[1756733711773,1.22589961,109480.0,109470.0,4.705e-05]
[1756733713146,1.57648447,109480.0,109470.0,4.705e-05]
[1756733713363,1.66840046,109480.0,109470.0,4.705e-05]
[1756733715032,0.18274853,109440.0,109430.0,0.07332]
[1756733715239,0.18274853,109440.0,109430.0,0.00312708]
[1756733715441,0.18274853,109440.0,109430.0,0.00523708]
[1756733715618,0.18485853,109440.0,109430.0,0.00215708]
[1756733716139,0.87544339,109440.0,109430.0,4.708e-05]
[1756733716567,0.87544339,109440.0,109430.0,0.00204708]
[1756733716777,1.32089424,109440.0,109430.0,0.00204708]
[1756733717005,0.97030938,109440.0,109430.0,0.00104708]
[1756733717440,0.97030938,109440.0,109430.0,4.708e-05]
[1756733717441,1.12810938,109440.0,109430.0,4.708e-05]
[1756733717787,1.13010938,109440.0,109430.0,4.708e-05]
[1756733717992,1.12910938,109440.0,109430.0,4.708e-05]
[1756733718620,1.12902938,109440.0,109430.0,4.708e-05]
[1756733719254,1.12802938,109440.0,109430.0,4.708e-05]
[1756733719465,1.13002938,109440.0,109430.0,4.708e-05]
[1756733719696,0.97430938,109440.0,109430.0,4.708e-05]
[1756733719884,0.52674853,109440.0,109430.0,0.00523708]
[1756733720239,0.52674853,109440.0,109430.0,0.22881994]
[1756733720240,0.004,109440.0,109430.0,0.22881994]
[1756733720502,0.18674853,109440.0,109430.0,0.18800231]
[1756733720822,0.18274853,109440.0,109430.0,0.00523708]
[1756733721031,0.18274853,109440.0,109430.0,0.18800231]
[1756733722381,0.18274692,109450.0,109440.0,0.18274853]
[1756733722557,0.18274692,109450.0,109440.0,0.00519]
[1756733724235,0.18485692,109450.0,109440.0,0.00211]
[1756733725419,0.18274692,109450.0,109440.0,0.00519]
[1756733725630,0.18274692,109450.0,109430.0,0.47270832]
[1756733725828,0.18274853,109440.0,109430.0,0.2930245]
[1756733726005,0.18274853,109440.0,109430.0,0.47789973]
[1756733726209,0.18274853,109440.0,109430.0,0.19993851]
[1756733726210,0.18485853,109440.0,109430.0,0.19993851]
[1756733726429,0.18274853,109440.0,109430.0,0.04561851]
[1756733727278,0.18274853,109440.0,109430.0,0.22838374]
[1756733727505,0.18274853,109440.0,109430.0,0.04561851]
[1756733729085,0.18485853,109440.0,109430.0,0.04253851]
[1756733729300,0.18274853,109440.0,109430.0,0.04561851]
[1756733731750,0.53544339,109440.0,109430.0,4.708e-05]
[1756733731954,0.87839339,109440.0,109430.0,4.708e-05]
[1756733732626,0.87544339,109440.0,109430.0,4.708e-05]
[1756733733046,0.87544339,109440.0,109430.0,0.00215708]
[1756733733047,0.87644339,109440.0,109430.0,0.00215708]
[1756733733256,1.03372339,109440.0,109430.0,0.00523708]
[1756733733466,0.68413853,109440.0,109430.0,0.00523708]
[1756733733601,0.52474853,109440.0,109430.0,0.00752164]
[1756733733846,0.002,109440.0,109430.0,0.34748687]
[1756733734044,0.002,109440.0,109430.0,0.34520231]
[1756733734247,0.002,109440.0,109430.0,0.4371183]
[1756733734764,0.18474853,109440.0,109430.0,0.09715307]
[1756733734975,0.18573853,109440.0,109430.0,0.25123307]
[1756733735187,0.18573853,109440.0,109430.0,0.25447307]
[1756733735188,0.18374853,109440.0,109430.0,0.25447307]
[1756733735393,0.18274853,109440.0,109430.0,0.4372383]
[1756733735974,0.18473853,109440.0,109430.0,0.16255708]
[1756733736210,0.18473853,109440.0,109430.0,0.16031708]
[1756733736794,0.53532339,109440.0,109430.0,0.15720708]
[1756733737000,0.53532339,109440.0,109430.0,0.04135441]
[1756733737368,0.18473853,109440.0,109430.0,0.04135441]
[1756733738000,0.34181853,109440.0,109430.0,4.708e-05]
[1756733738201,0.69240339,109440.0,109430.0,4.708e-05]
[1756733738404,0.69547339,109440.0,109430.0,4.708e-05]
[1756733738611,0.69240339,109440.0,109430.0,4.708e-05]
[1756733739465,0.69539339,109440.0,109430.0,4.708e-05]
[1756733740653,1.12730938,109440.0,109430.0,4.708e-05]
[1756733742030,1.12830938,109440.0,109430.0,4.708e-05]
[1756733742441,0.002,109440.0,109430.0,0.18804231]
[1756733742643,0.18274853,109440.0,109430.0,0.18804231]
[1756733743011,0.001,109440.0,109430.0,0.34504231]
[1756733743220,0.002,109440.0,109430.0,0.4369583]
[1756733743423,0.002,109440.0,109430.0,0.85778316]
[1756733743646,0.001,109440.0,109430.0,0.85778316]
[1756733743842,0.18273192,109450.0,109430.0,0.5071983]
[1756733744073,0.18273192,109450.0,109440.0,0.00324]
[1756733744278,0.18273192,109450.0,109440.0,0.19026288]
[1756733744481,0.18273192,109450.0,109440.0,0.00523]
[1756733744689,0.18274853,109440.0,109430.0,0.04162221]
[1756733744899,0.18473853,109440.0,109430.0,4.708e-05]
[1756733746174,0.53532339,109440.0,109430.0,0.00204708]
[1756733746366,0.53532339,109440.0,109430.0,0.00304708]
[1756733746535,0.53532339,109440.0,109430.0,0.00104708]
[1756733746958,0.18473853,109440.0,109430.0,0.00203708]
[1756733747177,0.18473853,109440.0,109430.0,4.708e-05]
[1756733747779,0.53532339,109440.0,109430.0,4.708e-05]
[1756733747980,0.53839339,109440.0,109430.0,4.708e-05]
[1756733748361,0.53532339,109440.0,109430.0,4.708e-05]
[1756733749865,0.53632339,109440.0,109430.0,4.708e-05]
[1756733750067,0.53732339,109440.0,109430.0,4.708e-05]
[1756733750262,0.53632339,109440.0,109430.0,0.00203708]
[1756733750476,0.18374853,109440.0,109430.0,0.19032687]
[1756733750699,0.18474853,109440.0,109430.0,0.00527708]
[1756733750908,0.18474853,109440.0,109430.0,0.00203708]
[1756733750909,0.18673853,109440.0,109430.0,0.00203708]
[1756733751944,0.18473853,109440.0,109430.0,0.00527708]
[1756733752144,0.18573853,109440.0,109430.0,0.00527708]
[1756733752530,0.18573853,109440.0,109430.0,4.708e-05]
[1756733752744,1.32089424,109440.0,109430.0,4.708e-05]
[1756733753798,1.32189424,109440.0,109430.0,4.708e-05]
[1756733753981,1.39213424,109440.0,109430.0,4.708e-05]
[1756733755032,1.39113424,109440.0,109430.0,4.708e-05]
[1756733755418,1.39790989,109440.0,109430.0,4.708e-05]
[1756733755616,1.4425265,109440.0,109430.0,4.708e-05]
[1756733755939,1.4455265,109440.0,109430.0,4.708e-05]
[1756733756345,1.4425265,109440.0,109430.0,4.708e-05]
[1756733756539,1.4465265,109440.0,109430.0,4.708e-05]
[1756733757179,1.4495265,109440.0,109430.0,4.708e-05]
[1756733758138,1.4495265,109440.0,109430.0,1e-08]
[1756733759870,1.6070465,109440.0,109430.0,1e-08]
[1756733760234,1.4495265,109440.0,109430.0,1e-08]
[1756733760441,1.20681503,109440.0,109430.0,1e-08]
[1756733760644,1.56046989,109440.0,109430.0,1e-08]
[1756733761054,0.70174017,109440.0,109430.0,1e-08]
[1756733761280,1.56050989,109440.0,109430.0,1e-08]
[1756733761452,1.65242588,109440.0,109430.0,1e-08]
[1756733762476,1.67854742,109440.0,109430.0,1e-08]
[1756733762682,1.65242588,109440.0,109430.0,1e-08]
[1756733762885,2.3155647,109440.0,109430.0,1e-08]
[1756733763089,2.17765703,109440.0,109430.0,1e-08]
[1756733763263,2.33525703,109440.0,109430.0,1e-08]
[1756733763468,2.20513203,109440.0,109430.0,1e-08]
[1756733763640,2.36273203,109440.0,109430.0,1e-08]
[1756733764287,2.20513203,109440.0,109430.0,1e-08]
[1756733764492,2.36269203,109440.0,109430.0,1e-08]
[1756733764694,2.40352651,109440.0,109430.0,1e-08]
[1756733767096,2.42964805,109440.0,109430.0,1e-08]
[1756733767666,2.45629074,109440.0,109430.0,1e-08]
[1756733768333,2.44504074,109440.0,109430.0,1e-08]
[1756733768545,2.60256074,109440.0,109430.0,1e-08]
[1756733768951,2.62718618,109440.0,109430.0,1e-08]
[1756733769355,2.62318618,109440.0,109430.0,1e-08]
[1756733769761,2.63118618,109440.0,109430.0,1e-08]
[1756733770174,2.62818618,109440.0,109430.0,1e-08]
[1756733770536,2.65225248,109440.0,109430.0,1e-08]
[1756733771258,2.65208835,109440.0,109430.0,1e-08]
[1756733771813,2.65204835,109440.0,109430.0,1e-08]
[1756733772025,2.64504835,109440.0,109430.0,1e-08]
[1756733772239,2.64504469,109440.0,109430.0,1e-08]
[1756733772421,7.65004469,109440.0,109430.0,1e-08]
[1756733772682,7.49272469,109440.0,109430.0,1e-08]
[1756733772907,7.65020469,109440.0,109430.0,1e-08]
[1756733773509,7.68944213,109440.0,109430.0,1e-08]
[1756733775259,7.66481669,109440.0,109430.0,1e-08]
[1756733775859,7.50733669,109440.0,109430.0,1e-08]
[1756733776084,7.66485669,109440.0,109430.0,1e-08]
[1756733776489,7.22265669,109440.0,109430.0,1e-08]
[1756733776700,7.06513669,109440.0,109430.0,1e-08]
[1756733776904,0.72278194,109420.0,109410.0,1e-08]
[1756733777258,1.43461111,109420.0,109410.0,1e-08]
[1756733777437,0.52284878,109380.0,109370.0,0.0004]
[1756733777640,0.68052878,109380.0,109370.0,0.0004]
[1756733777852,0.68052878,109380.0,109370.0,0.00255]
[1756733778045,0.52284878,109380.0,109370.0,0.00302169]
[1756733778265,0.70800878,109380.0,109370.0,0.00302169]
[1756733778466,1.05859364,109380.0,109370.0,0.00302169]
[1756733778866,1.05859364,109380.0,109370.0,0.00502169]
[1756733779072,1.05859364,109380.0,109370.0,0.00809169]
[1756733779504,1.05855364,109380.0,109370.0,0.00809169]
[1756733780491,1.15046963,109380.0,109370.0,0.00909169]
[1756733781145,1.15261963,109380.0,109370.0,0.00602169]
[1756733781940,1.15046963,109380.0,109370.0,0.00909169]
[1756733782140,1.15261963,109380.0,109370.0,0.00909169]
[1756733782503,1.15261963,109380.0,109370.0,0.00602169]
[1756733783183,1.15046963,109380.0,109370.0,0.00909169]
[1756733783348,1.24238562,109380.0,109370.0,0.00909169]
[1756733784171,1.24453562,109380.0,109370.0,0.00602169]
[1756733784638,1.2565585,109380.0,109370.0,0.00387169]
[1756733785277,1.2535385,109380.0,109370.0,0.00602169]
[1756733785497,1.2565585,109380.0,109370.0,0.00387169]
[1756733785709,1.27363962,109380.0,109370.0,0.00387169]
[1756733785926,1.01891363,109380.0,109370.0,0.00909169]
[1756733786131,1.15919251,109380.0,109370.0,0.00909169]
[1756733786815,0.65124765,109380.0,109370.0,0.00909169]
[1756733787019,0.21933166,109380.0,109370.0,0.00909169]
[1756733787222,0.37701166,109380.0,109370.0,0.00909169]
[1756733787427,0.71701166,109380.0,109370.0,0.00909169]
[1756733787642,0.02748,109380.0,109370.0,0.19195719]
[1756733787866,0.18284724,109390.0,109370.0,0.19195719]
[1756733788108,0.18284724,109390.0,109380.0,0.00307]
[1756733788522,0.18284724,109390.0,109380.0,0.18806878]
[1756733788935,0.34974554,109400.0,109380.0,0.27998477]
[1756733789153,0.34974554,109400.0,109390.0,0.00307]
[1756733789353,0.34974554,109400.0,109390.0,0.00522]
[1756733789564,0.19198554,109400.0,109390.0,0.18805206]
[1756733789786,0.18283994,109410.0,109400.0,0.18281535]
[1756733789999,0.52283994,109410.0,109400.0,0.00750519]
[1756733790420,0.52283994,109410.0,109400.0,0.00522]
[1756733791018,0.52283994,109410.0,109400.0,0.00750519]
[1756733791854,0.52283994,109410.0,109400.0,0.00850519]
[1756733792246,0.52283994,109410.0,109400.0,0.00622]
[1756733793647,0.8734248,109410.0,109400.0,0.00622]
[1756733794559,0.8755748,109410.0,109400.0,0.00215]
[1756733794761,0.18283206,109390.0,109380.0,0.07322]
[1756733794965,0.18284878,109380.0,109370.0,0.00087169]
[1756733795155,0.18284878,109380.0,109370.0,0.18373719]
[1756733795351,0.18284878,109380.0,109370.0,0.18585719]
[1756733795570,0.18284878,109380.0,109370.0,0.18879719]
[1756733795822,0.18284878,109380.0,109370.0,0.00593169]
[1756733796153,0.18284878,109380.0,109370.0,0.19279719]
[1756733796330,0.18283206,109390.0,109370.0,0.19279719]
[1756733796553,0.18284878,109380.0,109370.0,0.19185719]
[1756733796913,0.18283206,109390.0,109370.0,0.54244205]
[1756733797114,0.18283206,109390.0,109380.0,0.00294]
[1756733797340,0.18283206,109390.0,109380.0,0.00506]
[1756733798920,0.18283206,109390.0,109380.0,0.00606]
[1756733799758,0.70051601,109400.0,109380.0,0.00606]
[1756733799759,0.19197115,109400.0,109380.0,0.19119438]
[1756733799960,0.19197115,109400.0,109390.0,0.18577206]
[1756733800220,0.18283039,109400.0,109390.0,0.18789206]
[1756733800810,0.19197987,109410.0,109390.0,0.53847692]
[1756733801022,0.34981987,109410.0,109400.0,0.18804054]
[1756733801215,0.19197987,109410.0,109400.0,0.18787535]
[1756733801528,0.18278194,109420.0,109400.0,0.5407454]
[1756733801747,0.18279864,109410.0,109400.0,0.53552021]
[1756733802048,0.34062194,109420.0,109400.0,0.18787535]
[1756733802252,0.34062194,109420.0,109410.0,0.00294]
[1756733802432,0.34062194,109420.0,109410.0,0.00506]
[1756733802646,0.18278194,109420.0,109410.0,0.18785864]
[1756733802841,0.34058194,109420.0,109410.0,0.18785864]
[1756733803033,0.34058194,109420.0,109410.0,0.00506]
[1756733803228,0.34058194,109420.0,109410.0,0.00734498]
[1756733803433,0.34058194,109420.0,109410.0,0.00739208]
[1756733805279,0.34243194,109420.0,109410.0,0.0021671]
[1756733805496,0.6930168,109420.0,109410.0,0.0021671]
[1756733806198,0.6930168,109420.0,109410.0,0.0051071]
[1756733806608,0.34243194,109420.0,109410.0,0.0051071]
[1756733806747,0.34046194,109420.0,109410.0,0.0051071]
[1756733806980,0.6930168,109420.0,109410.0,4.71e-05]
[1756733807347,0.6959468,109420.0,109410.0,4.71e-05]
[1756733808173,1.21977878,109420.0,109410.0,4.71e-05]
[1756733808381,1.12786279,109420.0,109410.0,4.71e-05]
[1756733808587,1.15533579,109420.0,109410.0,4.71e-05]
[1756733814502,0.99765579,109420.0,109410.0,4.71e-05]
[1756733814707,0.99472579,109420.0,109410.0,0.0021671]
[1756733814935,0.64414093,109420.0,109410.0,0.0021671]
[1756733815246,0.80462093,109420.0,109410.0,0.0021671]
[1756733815445,0.80162093,109420.0,109410.0,0.0021671]
[1756733815660,0.80365093,109420.0,109410.0,0.0051071]
[1756733815856,0.55225494,109420.0,109410.0,0.0051071]
[1756733816082,0.68226194,109420.0,109410.0,0.0051071]
[1756733816245,0.68026194,109420.0,109410.0,0.0051071]
[1756733816654,0.68126194,109420.0,109410.0,0.0051071]
[1756733817169,0.68226194,109420.0,109410.0,0.0051071]
[1756733818495,0.68126194,109420.0,109410.0,0.0051071]
[1756733818690,0.68026194,109420.0,109410.0,0.0051071]
[1756733818896,0.68026194,109420.0,109410.0,0.0061071]
[1756733820083,0.68223194,109420.0,109410.0,0.0061071]
[1756733820271,0.52278194,109420.0,109410.0,0.0061071]
[1756733820484,0.68014194,109420.0,109410.0,0.0061071]
[1756733821338,0.68211194,109420.0,109410.0,0.0061071]
[1756733821542,0.68211194,109420.0,109410.0,0.0031671]
[1756733821918,0.68014194,109420.0,109410.0,0.0061071]
[1756733822365,0.68211194,109420.0,109410.0,0.0031671]
[1756733822782,1.0326968,109420.0,109410.0,0.0031671]
[1756733823201,0.68002194,109420.0,109410.0,0.0061071]
[1756733824160,0.18278194,109420.0,109410.0,0.0061071]
[1756733824367,0.33994194,109420.0,109410.0,0.0061071]
[1756733824595,0.29890837,109430.0,109410.0,0.18890574]
[1756733824596,0.28966666,109430.0,109410.0,0.18890574]
[1756733824798,0.19191866,109430.0,109410.0,0.5365506]
[1756733825004,0.34907866,109430.0,109420.0,0.00323]
[1756733825235,0.18278194,109420.0,109410.0,0.0010471]
[1756733825439,0.5333668,109420.0,109410.0,0.0010471]
[1756733825643,0.5355268,109420.0,109410.0,0.0010471]
[1756733825848,0.5385868,109420.0,109410.0,0.0010471]
[1756733826615,0.5385868,109420.0,109410.0,4.71e-05]
[1756733826912,0.5395868,109420.0,109410.0,4.71e-05]
[1756733827110,0.8795868,109420.0,109410.0,4.71e-05]
[1756733827521,0.9070568,109420.0,109410.0,4.71e-05]
[1756733828126,0.9080568,109420.0,109410.0,4.71e-05]
[1756733830121,0.55747194,109420.0,109410.0,4.71e-05]
[1756733830317,0.9080568,109420.0,109410.0,4.71e-05]
[1756733831616,0.72527486,109420.0,109410.0,4.71e-05]
[1756733831842,0.9080568,109420.0,109410.0,4.71e-05]
[1756733832041,0.55747194,109420.0,109410.0,4.71e-05]
[1756733832290,0.9080568,109420.0,109410.0,4.71e-05]
[1756733832465,0.99997279,109420.0,109410.0,4.71e-05]
[1756733834253,1.15809279,109420.0,109410.0,4.71e-05]
[1756733838700,0.64938793,109420.0,109410.0,4.71e-05]
[1756733838915,0.80220793,109420.0,109410.0,0.0022071]
[1756733839121,0.71029194,109420.0,109410.0,0.0054371]
[1756733839535,0.55225194,109420.0,109410.0,0.0054371]
[1756733839794,0.68282194,109420.0,109410.0,0.0054371]
[1756733840427,0.68182194,109420.0,109410.0,0.0054371]
[1756733840813,0.68082194,109420.0,109410.0,0.0064371]
[1756733841404,0.52800194,109420.0,109410.0,0.0010471]
[1756733841592,1.0366268,109420.0,109410.0,0.0010471]
[1756733842188,1.12854279,109420.0,109410.0,0.0010471]
[1756733843451,1.12854279,109420.0,109410.0,4.71e-05]
[1756733843903,1.13054279,109420.0,109410.0,4.71e-05]
[1756733844114,1.12954279,109420.0,109410.0,4.71e-05]
[1756733844317,1.13054279,109420.0,109410.0,4.71e-05]
[1756733844834,1.13254279,109420.0,109410.0,4.71e-05]
[1756733848228,1.13254279,109420.0,109410.0,1e-08]
[1756733848444,1.54992604,109420.0,109410.0,1e-08]
[1756733848673,1.5238045,109420.0,109410.0,1e-08]
[1756733848876,1.01517964,109420.0,109410.0,1e-08]
[1756733849082,1.17317964,109420.0,109410.0,1e-08]
[1756733849296,1.26505563,109420.0,109410.0,1e-08]
[1756733849510,1.61564049,109420.0,109410.0,1e-08]
[1756733849732,1.64176203,109420.0,109410.0,1e-08]
[1756733849960,1.66635706,109420.0,109410.0,1e-08]
[1756733850371,1.71844472,109420.0,109410.0,1e-08]
[1756733850573,1.74303975,109420.0,109410.0,1e-08]
[1756733850782,1.79303975,109420.0,109410.0,1e-08]
[1756733851648,1.79311975,109420.0,109410.0,1e-08]
[1756733852991,6.82596089,109420.0,109410.0,1e-08]
[1756733853819,6.79936586,109420.0,109410.0,1e-08]
[1756733854028,0.89437246,109380.0,109370.0,1e-08]
[1756733854233,0.95653958,109380.0,109370.0,1e-08]
[1756733854368,0.77696076,109380.0,109370.0,0.00216001]
[1756733854557,1.19666963,109380.0,109370.0,0.00539001]
[1756733854982,1.19972963,109380.0,109370.0,0.00200001]
[1756733855189,1.22723463,109380.0,109370.0,0.00200001]
[1756733855392,1.22423463,109380.0,109370.0,0.00200001]
[1756733855607,0.71252977,109380.0,109370.0,0.00503001]
[1756733855809,1.06311463,109380.0,109370.0,0.00503001]
[1756733856040,0.71252977,109380.0,109370.0,0.00503001]
[1756733856258,0.87144977,109380.0,109370.0,0.00503001]
[1756733856484,1.22203463,109380.0,109370.0,0.00503001]
[1756733856836,1.22203463,109380.0,109370.0,0.00603001]
[1756733857743,0.87144977,109380.0,109370.0,0.00603001]
[1756733857954,1.22203463,109380.0,109370.0,0.00603001]
[1756733858781,0.87347977,109380.0,109370.0,0.00603001]
[1756733858996,1.22406463,109380.0,109370.0,0.00603001]
[1756733859843,1.22203463,109380.0,109370.0,0.00603001]
[1756733861504,1.06311463,109380.0,109370.0,0.00603001]
[1756733861712,1.22235463,109380.0,109370.0,0.00603001]
[1756733862544,1.06311463,109380.0,109370.0,0.00603001]
[1756733862752,1.22235463,109380.0,109370.0,0.00603001]
[1756733864326,0.21033378,109380.0,109370.0,0.00603001]
[1756733864531,0.34192878,109380.0,109370.0,0.00603001]
[1756733865256,0.18284878,109380.0,109370.0,0.19118132]
[1756733865465,0.34192878,109380.0,109370.0,0.00603001]
[1756733865670,0.34192878,109380.0,109370.0,0.18889551]
[1756733866285,0.34192878,109380.0,109370.0,0.00603001]
[1756733866487,0.34192878,109380.0,109370.0,0.00503001]
[1756733866895,0.34192878,109380.0,109370.0,0.00803001]
[1756733867739,0.34192878,109380.0,109370.0,0.00903001]
[1756733871352,0.34192878,109380.0,109370.0,0.19189551]
[1756733871771,0.34192878,109380.0,109370.0,0.00903001]
[1756733871980,0.18284878,109380.0,109370.0,0.00903001]
[1756733872190,0.34172878,109380.0,109370.0,0.00903001]
[1756733872581,0.18284878,109380.0,109370.0,0.00903001]
[1756733872831,0.15876,109380.0,109370.0,0.19189551]
[1756733873047,0.18284878,109380.0,109370.0,0.19189551]
[1756733873864,0.21031006,109390.0,109370.0,0.19189551]
[1756733874087,0.21031006,109390.0,109380.0,0.18816438]
[1756733874207,0.34171206,109390.0,109380.0,0.18587878]
[1756733874409,0.34171206,109390.0,109380.0,0.18787878]
[1756733876052,0.34171206,109390.0,109380.0,0.00503]
[1756733876264,0.18283206,109390.0,109380.0,0.00503]
[1756733877010,0.18283206,109390.0,109380.0,0.00603]
[1756733877273,0.18283206,109390.0,109380.0,0.0083156]
[1756733877946,0.18283206,109390.0,109380.0,0.19016438]
[1756733878145,0.18283206,109390.0,109380.0,0.18787878]
[1756733878343,0.18283206,109390.0,109380.0,0.18887878]
[1756733878520,0.18283206,109390.0,109380.0,0.00603]
[1756733879368,0.18283206,109390.0,109380.0,0.00703]
[1756733879501,0.18283206,109390.0,109380.0,0.00603]
[1756733879711,0.18283206,109390.0,109380.0,0.00903]
[1756733880521,0.52536685,109390.0,109380.0,0.004]
[1756733880723,0.86536685,109390.0,109380.0,0.004]
[1756733881558,0.52486206,109390.0,109380.0,0.005]
[1756733881761,0.86234685,109390.0,109380.0,0.005]
[1756733881987,1.02098685,109390.0,109380.0,0.005]
[1756733882182,1.02400685,109390.0,109380.0,0.003]
[1756733882584,1.02400685,109390.0,109370.0,1e-08]
[1756733882585,0.18284878,109380.0,109370.0,1e-08]
[1756733882788,0.52033357,109380.0,109370.0,1e-08]
[1756733882988,0.86286836,109380.0,109370.0,1e-08]
[1756733883195,0.89034736,109380.0,109370.0,1e-08]
[1756733883587,0.55286257,109380.0,109370.0,1e-08]
[1756733883989,0.55286257,109380.0,109370.0,0.00300001]
[1756733884868,0.55286257,109380.0,109370.0,0.00400001]
[1756733886187,0.027479,109380.0,109370.0,0.19209551]
[1756733886480,0.18283594,109390.0,109380.0,0.18284878]
[1756733886673,0.027475,109390.0,109380.0,0.18513438]
[1756733886882,0.35062466,109400.0,109380.0,0.19036438]
[1756733887099,0.18283206,109390.0,109380.0,0.18807878]
[1756733887680,0.18283206,109390.0,109380.0,0.18907878]
[1756733887884,0.18283206,109390.0,109380.0,0.00623]
[1756733888085,0.18283206,109390.0,109380.0,0.00298]
[1756733888086,0.18485206,109390.0,109380.0,0.00298]
[1756733888923,0.18283206,109390.0,109380.0,0.18907878]
[1756733889177,0.18485206,109390.0,109380.0,0.18582878]
[1756733889478,0.18284878,109380.0,109370.0,1e-08]
[1756733889699,0.53435988,109380.0,109370.0,1e-08]
[1756733889896,0.53637988,109380.0,109370.0,1e-08]
[1756733890096,0.18808878,109380.0,109370.0,1e-08]
[1756733890852,0.18808878,109380.0,109370.0,0.0408812]
[1756733891254,0.69831988,109380.0,109370.0,1e-08]
[1756733891505,0.34680878,109380.0,109370.0,0.00100001]
[1756733891656,0.69831988,109380.0,109370.0,0.00100001]
[1756733891861,0.69831988,109380.0,109370.0,0.00400001]
[1756733892095,0.72579888,109380.0,109370.0,0.00400001]
[1756733892467,0.72571888,109380.0,109370.0,0.00400001]
[1756733893426,1.06571888,109380.0,109370.0,0.00400001]
[1756733893632,1.15763487,109380.0,109370.0,0.00400001]
[1756733895663,1.15763487,109380.0,109370.0,1e-08]
[1756733896064,0.99999487,109380.0,109370.0,1e-08]
[1756733896271,1.15927487,109380.0,109370.0,1e-08]
[1756733897084,0.99999487,109380.0,109370.0,1e-08]
[1756733897283,1.15923487,109380.0,109370.0,1e-08]
[1756733897593,1.1889279,109380.0,109370.0,1e-08]
[1756733897797,1.15923487,109380.0,109370.0,1e-08]
[1756733897999,1.15823487,109380.0,109370.0,1e-08]
[1756733898386,1.15923487,109380.0,109370.0,1e-08]
[1756733898983,1.15919487,109380.0,109370.0,1e-08]
[1756733899588,0.99999487,109380.0,109370.0,1e-08]
[1756733899791,1.15911487,109380.0,109370.0,1e-08]
[1756733900198,1.25103086,109380.0,109370.0,1e-08]
[1756733901336,1.15911487,109380.0,109370.0,1e-08]
[1756733901768,0.99999487,109380.0,109370.0,1e-08]
[1756733901898,1.15903487,109380.0,109370.0,1e-08]
[1756733902925,0.99999487,109380.0,109370.0,1e-08]
[1756733903127,1.15899487,109380.0,109370.0,1e-08]
[1756733904186,0.99975387,109380.0,109370.0,1e-08]
[1756733904400,0.80728277,109380.0,109370.0,1e-08]
[1756733904579,1.15867387,109380.0,109370.0,1e-08]
[1756733906408,0.99653387,109380.0,109370.0,0.00198001]
[1756733906646,1.15537387,109380.0,109370.0,0.00198001]
[1756733906896,1.15537387,109380.0,109370.0,0.00523001]
[1756733907084,1.15335387,109380.0,109370.0,0.00523001]
[1756733907870,0.21008678,109380.0,109370.0,0.00523001]
[1756733908090,0.72035788,109380.0,109370.0,0.00523001]
[1756733908456,0.90259788,109380.0,109370.0,0.00523001]
[1756733908633,1.06135788,109380.0,109370.0,0.00523001]
[1756733908946,1.06035788,109380.0,109370.0,0.00523001]
[1756733909366,1.06035788,109380.0,109370.0,0.00623001]
[1756733911158,1.01878149,109380.0,109370.0,0.00623001]
[1756733913197,1.01866149,109380.0,109370.0,0.00623001]
[1756733913622,0.18284878,109380.0,109370.0,0.18909551]
[1756733913851,0.69310316,109390.0,109380.0,0.18284878]
[1756733914074,0.69310316,109390.0,109380.0,0.18807878]
[1756733914539,0.53434316,109390.0,109380.0,0.18807878]
[1756733914786,0.69310316,109390.0,109380.0,0.18807878]
[1756733915176,0.53434316,109390.0,109380.0,0.18807878]
[1756733915355,0.69310316,109390.0,109380.0,0.00923]
[1756733915762,0.21945966,109400.0,109380.0,0.19207878]
[1756733915977,0.18283206,109390.0,109380.0,0.18882878]
[1756733916183,0.534355,109400.0,109390.0,0.18283206]
[1756733916391,0.693035,109400.0,109390.0,0.18491206]
[1756733916600,0.693035,109400.0,109390.0,0.18800206]
[1756733916813,0.1828439,109400.0,109390.0,0.18800206]
[1756733917035,0.534355,109400.0,109390.0,0.18800206]
[1756733917243,0.3515111,109400.0,109390.0,0.18800206]
[1756733917453,0.21027364,109410.0,109400.0,0.18281535]
[1756733917665,0.53431174,109410.0,109400.0,0.18798535]
[1756733918090,0.69295174,109410.0,109400.0,0.18798535]
[1756733918304,0.34144064,109410.0,109400.0,0.18798535]
[1756733918484,0.18280064,109410.0,109400.0,0.18798535]
[1756733918683,0.34244064,109410.0,109400.0,0.18798535]
[1756733918889,0.34144064,109410.0,109400.0,0.18798535]
[1756733919328,0.34144064,109410.0,109400.0,0.00717]
[1756733919995,0.34144064,109410.0,109400.0,0.18998535]
[1756733920247,0.34144064,109410.0,109400.0,0.00817]
[1756733920519,0.34144064,109410.0,109400.0,0.00217]
[1756733920764,0.34144064,109410.0,109400.0,0.00425]